{"text_format":"1","workbook":"xlsx","n_sheets":3,"sheets":["add","رأس المال","الصندوق"],"not_rendered":{"charts":0,"images":5,"macros":1,"external_links":0,"defined_names":0,"comments":0,"pivot_tables":0},"unopened":[],"bounds":{"document_bytes":16777216,"sheet_cells":100000,"rows_first":2000,"rows_last":500,"rows_between":2000,"halvings":0,"cell_chars":16384,"cell_head_chars":4096},"cells_cut":0,"cells_raw":0,"read":"whole","date_system":"1900"}

{"sheet":"add","index":0,"n_rows":24,"n_cols":13,"rows_kept":24,"cut":false,"hidden":false,"merged":[[2,0,2,2],[4,0,4,2]]}
[]
[null,null,null,null,null,null,null,null,null,null,null,null,"رأس المال"]
["اضافة كود محاسبي"]
[]
["الذهاب الى صفحة العميل",null,null,"رأس المال"]
[]
[]
[null,"التاريخ","الاسم","البيان","المستخلص","مدين","دائن","الرصيد","الحركة"]
[null,null,null,null,null,null,{"$f":"E9-F9","v":0},{"$f":"G9","v":0}]
[null,null,null,null,null,null,{"$f":"E10-F10","v":0},{"$f":"G10","v":0}]
[null,null,null,null,null,null,0,0]
[null,null,null,null,null,null,0,0]
[null,null,null,null,null,null,0,0]
[null,null,null,null,null,null,0,0]
[null,null,null,null,null,null,0,0]
[null,null,null,null,null,null,0,0]
[null,null,null,null,null,null,0,0]
[null,null,null,null,null,null,0,0]
[null,null,null,null,null,null,0,0]
[null,null,null,null,null,null,0,0]
[null,null,null,null,null,null,0,0]
[null,null,null,null,null,null,0,0]
[null,null,null,null,null,null,0,0]
[null,null,null,null,null,null,0,0]

{"sheet":"رأس المال","index":1,"n_rows":4,"n_cols":9,"rows_kept":4,"cut":false,"hidden":true,"merged":[]}
[]
[]
[null,"التاريخ","الاسم","البيان","المستخلص","مدين","دائن","الرصيد","الحركة"]
[null,"2019-10-18","محمد","اب",1000,500,500,500,"ب"]

{"sheet":"الصندوق","index":2,"n_rows":4,"n_cols":11,"rows_kept":4,"cut":false,"hidden":false,"merged":[]}
[]
[]
[null,"م","التاريخ","الاسم","البيان","المستخلص","مدين","دائن","الرصيد","الحركة","كود المحاسبي"]
[null,1,43756,"محمد","اب",1000,500,500,500,"ب","رأس المال"]